bitfinex-derivatives/quotes_ETHF0:USTF0_20250926
["timestamp","ask_amount","ask_price","bid_price","bid_amount"]
[1758855280783,0.0252,3961.7,3961.6,43.13570025]
[1758855281483,0.3408,3961.7,3961.6,42.87670025]
[1758855281683,0.3408,3961.7,3961.6,43.13570025]
[1758855283286,0.3408,3961.7,3961.6,41.0123]
[1758855283583,0.7892,3961.7,3961.6,0.259]
[1758855283787,0.7892,3961.7,3961.6,0.4713]
[1758855284082,0.7892,3961.7,3961.6,0.2123]
[1758855284286,0.7892,3961.7,3961.6,0.4713]
[1758855285589,0.7892,3961.7,3961.6,0.2123]
[1758855285891,0.3156,3961.6,3961.5,0.5869]
[1758855286189,0.764,3961.6,3961.5,0.8459]
[1758855286982,0.764,3961.6,3961.5,0.5869]
[1758855287187,0.764,3961.6,3961.5,0.8459]
[1758855288085,0.764,3961.6,3960.0,1.46724779]
[1758855288086,0.1284,3961.5,3960.5,0.45421]
[1758855288282,0.764,3960.6,3960.5,0.89451]
[1758855288482,0.764,3960.6,3960.5,1.36741]
[1758855289383,0.764,3960.6,3960.5,1.20641]
[1758855289590,0.764,3960.6,3960.5,0.4403]
[1758855289789,0.764,3960.6,3960.5,0.6993]
[1758855289988,0.764,3960.6,3960.5,1.0112]
[1758855290189,0.1284,3961.0,3960.5,42.2654]
[1758855290390,0.2282,3960.8,3960.7,1.76480025]
[1758855290691,0.764,3960.8,3960.7,0.6993]
[1758855291891,0.764,3960.8,3960.7,1.0112]
[1758855292989,0.76974,3961.2,3960.8,0.45418]
[1758855293301,0.5438,3961.2,3961.1,0.7522]
[1758855293493,1.07858615,3961.2,3961.1,1.0112]
[1758855293895,1.29878615,3961.2,3961.1,0.6993]
[1758855294192,1.29878615,3961.2,3961.1,0.4403]
[1758855294485,0.764,3960.7,3960.6,1.76480025]
[1758855294692,0.764,3960.7,3960.6,2.33570025]
[1758855295890,0.3156,3961.2,3961.0,0.3119]
[1758855296092,0.53501998,3961.1,3961.0,0.7522]
[1758855296287,0.85061998,3961.1,3961.0,1.0112]
[1758855296896,1.0789385,3961.1,3961.0,1.46534]
[1758855298193,1.7532785,3961.1,3961.0,0.6993]
[1758855298500,1.2991385,3961.1,3961.0,0.6993]
[1758855299698,0.0252,3961.3,3961.1,0.45414]
[1758855300003,0.53519363,3961.2,3961.1,1.20634]
[1758855300293,0.53519363,3961.2,3961.1,1.46534]
[1758855300895,0.53519363,3961.2,3961.1,2.78984025]
[1758855301800,1.10719363,3961.2,3961.1,2.78984025]
[1758855302092,1.10719363,3961.2,3961.1,2.53084025]
[1758855302294,1.31979363,3961.2,3961.1,0.66644]
[1758855302487,0.9134,3961.0,3960.9,0.66436]
[1758855302790,0.9134,3961.0,3960.9,0.92336]
[1758855302987,0.2549,3961.3,3961.2,0.87983]
[1758855303193,0.8098,3961.3,3961.2,1.13883]
[1758855303392,1.3449728,3961.3,3961.2,1.13883]
[1758855303995,1.3449728,3961.3,3961.2,0.92333]
[1758855304401,1.3449728,3961.3,3961.2,0.71313]
[1758855305293,1.3449728,3961.3,3961.2,1.46053]
[1758855310103,0.0252,3961.3,3961.2,1.46053]
[1758855310697,0.0252,3961.3,3961.2,11.58853]
[1758855310897,0.0252,3961.3,3961.2,11.84753]
[1758855311403,0.687,3962.0,3961.9,0.88985]
[1758855311708,0.687,3962.0,3961.9,2.78495025]
[1758855311709,1.2223923,3962.0,3961.9,2.78495025]
[1758855312098,1.4430923,3962.0,3961.9,2.78495025]
[1758855312900,1.3146923,3962.0,3961.9,2.78495025]
[1758855313102,0.7793,3961.9,3961.3,1.32450025]
[1758855313307,0.7793,3961.9,3961.2,7.60143025]
[1758855313308,0.7793,3961.3,3961.2,7.60143025]
[1758855313510,0.7793,3961.3,3961.2,8.17203025]
[1758855313911,0.5586,3961.3,3961.2,8.17203025]
[1758855314402,0.7793,3961.3,3961.2,0.88993]
[1758855314602,0.7793,3961.1,3960.6,1.32450025]
[1758855314806,1.23681316,3961.0,3960.9,0.45416]
[1758855315002,0.4362,3960.8,3960.7,0.45418]
[1758855315202,0.4362,3960.8,3960.7,0.71318]
[1758855315203,1.31494362,3960.8,3960.7,0.71318]
[1758855315411,0.7793,3960.8,3960.7,1.46058]
[1758855315603,1.31494893,3960.8,3960.7,1.14898]
[1758855316203,1.31494893,3960.8,3960.7,1.46058]
[1758855316508,1.31494893,3960.8,3960.7,1.14898]
[1758855317509,1.31494893,3960.8,3960.7,0.6948]
[1758855317807,0.7793,3960.2,3959.9,0.45428]
[1758855318007,0.3431,3959.9,3959.7,0.4543]
[1758855318209,0.3581,3960.0,3959.7,0.6643]
[1758855318210,0.7793,3959.8,3959.7,0.6643]
[1758855318405,0.7793,3959.8,3959.7,0.9233]
[1758855318605,0.7793,3959.8,3959.7,41.6901]
[1758855318808,0.7793,3959.8,3959.7,0.4543]
[1758855319115,0.7793,3959.4,3959.3,1.98885025]
[1758855319417,0.7793,3959.4,3959.3,2.47365025]
[1758855319606,0.2155,3959.0,3958.9,40.8]
[1758855319811,0.696,3959.0,3958.9,41.059]
[1758855320010,0.696,3959.0,3958.9,42.69510025]
[1758855320317,0.5586,3959.0,3958.9,42.69510025]
[1758855320512,0.5586,3959.0,3958.9,42.43610025]
[1758855320711,0.5586,3959.0,3958.9,42.69510025]
[1758855321315,0.696,3959.0,3958.9,42.69510025]
[1758855321515,0.696,3959.0,3958.9,40.8]
[1758855321704,0.7793,3958.9,3958.8,0.93739149]
[1758855321910,0.7793,3958.9,3958.8,1.19639149]
[1758855322303,0.7793,3958.9,3958.8,0.04719149]
[1758855322610,0.7793,3958.9,3958.8,0.30619149]
[1758855322810,0.7793,3958.9,3958.8,0.51619149]
[1758855323006,0.7793,3958.9,3958.8,0.48299149]
[1758855323205,0.7793,3958.9,3958.8,0.74199149]
[1758855323612,0.7793,3958.9,3958.8,0.04719149]
[1758855323811,0.7793,3958.9,3958.8,0.30619149]
[1758855324210,0.7793,3958.9,3958.8,0.74199149]
[1758855324913,0.3431,3959.2,3959.1,0.99176]
[1758855325218,0.5586,3959.2,3959.1,1.46076]
[1758855325411,0.1374,3959.5,3959.4,0.45434]
[1758855325611,0.5736,3959.5,3959.4,1.14914]
[1758855325915,0.5736,3959.5,3959.4,1.46074]
[1758855326112,0.9167,3959.5,3959.4,1.46074]
[1758855326511,0.9167,3959.5,3959.4,0.71334]
[1758855326713,0.9167,3959.5,3959.4,0.92334]
[1758855327508,0.9167,3959.5,3959.4,0.66434]
[1758855327716,0.9167,3959.5,3959.4,0.92334]
[1758855328013,0.3431,3959.4,3958.8,0.04719149]
[1758855328211,0.2155,3958.9,3958.8,1.24900149]
[1758855328515,0.2155,3959.2,3959.1,0.7474]
[1758855328711,0.2155,3959.2,3959.1,1.0064]
[1758855328914,0.7793,3959.2,3959.1,1.0064]
[1758855329306,0.2155,3959.5,3959.4,1.20174]
[1758855329516,0.1374,3960.0,3959.9,1.20168]
[1758855329517,0.5586,3960.0,3959.9,1.20168]
[1758855329819,0.9167,3960.0,3959.9,0.259]
[1758855330618,0.9167,3960.0,3959.9,0.92328]
[1758855330829,0.9167,3960.0,3959.9,0.66428]
[1758855331014,0.9167,3960.0,3959.9,0.92328]
[1758855331215,0.9167,3960.0,3959.9,0.71328]
[1758855331717,0.9167,3960.0,3959.9,0.45428]
[1758855331918,0.9167,3960.0,3959.9,0.71328]
[1758855332110,0.9167,3960.0,3959.9,0.94108]
[1758855332423,0.9167,3960.0,3959.9,1.15558]
[1758855332617,0.7792,3960.4,3960.3,1.21933]
[1758855332921,0.559,3960.4,3960.3,1.47833]
[1758855333310,0.7792,3960.8,3960.7,1.21928]
[1758855333510,0.7792,3960.8,3960.7,0.259]
[1758855333710,0.7792,3960.8,3960.7,0.4868]
[1758855333917,0.7792,3960.8,3960.7,0.7013]
[1758855334219,0.7792,3960.8,3960.7,1.0241]
[1758855334919,0.7792,3960.8,3960.7,0.7013]
[1758855336119,0.7792,3960.8,3960.7,1.0241]
[1758855336814,0.559,3960.8,3960.7,1.0241]
[1758855337021,0.559,3961.0,3960.9,0.7651]
[1758855337715,0.559,3960.6,3960.5,41.25421]
[1758855337911,0.559,3960.6,3960.5,41.51321]
[1758855338116,0.9119,3961.0,3960.9,0.4423]
[1758855338326,0.9119,3961.0,3960.9,0.7013]
[1758855338716,0.9119,3961.0,3960.5,40.8]
[1758855338717,0.45419,3960.7,3960.5,40.8]
[1758855339016,0.7792,3960.3,3959.9,0.45427]
[1758855339321,0.2197,3960.2,3960.1,0.2145]
[1758855339517,0.559,3960.2,3960.1,0.7651]
[1758855340124,0.7792,3960.2,3960.1,0.7651]
[1758855342722,0.4399,3960.2,3959.9,40.8]
[1758855342928,0.4399,3960.2,3959.7,0.3228]
[1758855342929,0.7792,3959.8,3959.7,0.6821]
[1758855343225,0.7792,3959.8,3959.7,0.9411]
[1758855343431,0.7792,3959.8,3959.7,41.7411]
[1758855343624,0.7792,3959.8,3959.7,42.0639]
[1758855343933,0.559,3960.0,3959.9,1.21938]
[1758855344131,0.7792,3960.4,3960.3,0.89653]
[1758855344427,1.31414349,3960.4,3960.3,1.15553]
[1758855345928,1.31414349,3960.4,3960.3,0.89653]
[1758855346120,1.31414349,3960.4,3960.3,1.15553]
[1758855346626,1.31414349,3960.4,3960.3,1.47833]
[1758855346929,0.7792,3960.4,3960.3,1.47833]
[1758855347118,0.559,3960.4,3960.3,1.47833]
[1758855347324,0.7792,3960.9,3960.8,0.45417]
[1758855347526,1.31462095,3960.9,3960.8,0.71317]
[1758855348225,1.31462095,3960.9,3960.8,1.47827]
[1758855348427,0.7792,3960.9,3960.8,1.47827]
[1758855348923,0.559,3960.9,3960.8,1.47827]
[1758855349125,0.8044,3961.4,3961.3,0.45412]
[1758855349331,1.33968411,3961.4,3961.3,0.259]
[1758855349527,1.33968411,3961.4,3960.2,0.19877955]
[1758855349528,0.3393,3961.3,3960.2,0.19877955]
[1758855349828,0.7792,3960.3,3960.2,0.68204]
[1758855350020,0.7792,3960.3,3960.2,0.94104]
[1758855350220,0.7792,3960.3,3960.2,1.15554]
[1758855350626,0.559,3960.3,3960.2,1.47834]
[1758855351034,0.2197,3960.5,3960.4,0.4423]
[1758855351231,0.2197,3960.5,3960.4,0.7651]
[1758855351832,0.1374,3961.5,3961.0,1.21925]
[1758855351833,0.559,3961.1,3961.0,1.21925]
[1758855352027,1.09563073,3961.1,3961.0,1.47825]
[1758855352531,1.09563073,3961.1,3961.0,1.15545]
[1758855352730,0.53663073,3961.1,3961.0,1.47825]
[1758855352927,0.559,3961.1,3961.0,1.21925]
[1758855353128,0.7792,3961.1,3961.0,1.47825]
[1758855353633,0.7792,3961.1,3961.0,1.21925]
[1758855353834,0.7792,3961.1,3961.0,1.47825]
[1758855354533,0.7792,3961.1,3961.0,0.89645]
[1758855354726,1.31604792,3961.1,3961.0,0.94095]
[1758855354926,1.31604792,3961.1,3961.0,0.45415]
[1758855355126,1.09584792,3961.1,3961.0,1.47825]
[1758855356133,1.31604792,3961.1,3961.0,0.89645]
[1758855356332,1.31604792,3961.1,3961.0,0.94095]
[1758855356720,1.31604792,3961.1,3961.0,0.45415]
[1758855356927,1.31604792,3961.1,3961.0,0.71315]
[1758855357331,1.31604792,3961.1,3961.0,0.94095]
[1758855360035,0.7925,3960.9,3960.8,0.45417]
[1758855360238,1.32934792,3960.9,3960.8,0.71317]
[1758855360638,1.33001202,3960.9,3960.8,0.71317]
[1758855361835,1.33001202,3960.9,3960.8,0.45417]
[1758855362143,0.7925,3960.7,3960.6,0.4542]
[1758855362440,1.33001202,3960.7,3960.6,0.7132]
[1758855362741,1.33001202,3960.7,3960.6,0.9287]
[1758855363538,1.33001202,3960.7,3960.6,1.1559]
[1758855363735,1.33001202,3960.7,3960.6,1.47]
[1758855364140,1.33001202,3960.7,3960.6,1.211]
[1758855364441,1.33001202,3960.7,3960.6,1.47]
[1758855364940,0.53751202,3960.7,3960.6,1.47]
[1758855365141,1.10388731,3960.9,3960.8,1.23808]
[1758855365343,1.33438731,3960.9,3960.8,1.23808]
[1758855365642,1.33438731,3960.9,3960.8,0.67728]
[1758855366534,1.33438731,3960.9,3960.8,1.23808]
[1758855366535,1.10388731,3960.9,3960.8,1.23808]
[1758855366735,0.53758731,3960.9,3960.8,1.23808]
[1758855366934,0.76198731,3960.9,3960.8,1.23808]
[1758855367130,1.10388731,3960.9,3960.8,1.23808]
[1758855367336,1.10388731,3960.9,3960.8,0.45418]
[1758855367337,1.33438731,3960.9,3960.8,0.45418]
[1758855367646,0.99248731,3960.9,3960.8,0.259]
[1758855367939,1.44665731,3960.9,3960.8,0.259]
[1758855368141,1.78855731,3960.9,3960.8,0.259]
[1758855368348,0.79611,3960.6,3960.0,0.45426]
[1758855368547,0.7968,3960.1,3960.0,0.45426]
[1758855368741,1.33438731,3960.1,3960.0,0.71326]
[1758855369045,0.3419,3960.1,3960.0,1.16226]
[1758855369239,0.7968,3960.1,3960.0,1.16226]
[1758855370039,0.1321,3960.0,3959.6,40.8]
[1758855370343,0.7968,3959.6,3959.5,0.449]
[1758855370545,1.33452097,3959.6,3959.5,0.708]
[1758855371442,0.7968,3959.6,3959.5,0.708]
[1758855372141,0.4549,3959.3,3959.2,40.8]
[1758855372342,0.58643,3959.5,3959.0,0.67748]
[1758855372343,0.7968,3959.1,3959.0,0.67748]
[1758855372646,0.7968,3958.9,3958.8,0.72469149]
[1758855372837,0.7968,3958.9,3958.8,0.98369149]
[1758855374947,0.7968,3958.9,3958.8,0.72469149]
[1758855375144,0.7968,3958.9,3958.8,0.98369149]
[1758855375746,0.7968,3958.9,3958.8,0.72469149]
[1758855376047,0.7968,3958.9,3958.8,0.98369149]
[1758855376241,0.7968,3958.9,3958.8,0.9365]
[1758855377348,0.7968,3958.9,3958.8,0.259]
[1758855378350,0.1321,3959.0,3958.3,0.1906]
[1758855378351,0.4549,3958.4,3958.3,0.67755]
[1758855378546,0.7968,3958.4,3958.3,0.93655]
[1758855378744,0.7968,3958.4,3958.1,0.45448]
[1758855379047,0.7968,3958.3,3958.1,0.45448]
[1758855379240,0.7968,3958.2,3958.1,0.67758]
[1758855379446,0.7968,3958.2,3958.1,0.93658]
[1758855379648,0.7968,3958.2,3958.1,1.16248]
[1758855380349,0.7968,3958.2,3958.1,0.90348]
[1758855380646,0.7968,3958.2,3958.1,1.16248]
[1758855380948,0.1321,3958.5,3958.4,0.45445]
[1758855381144,0.3565,3958.5,3958.4,1.16245]
[1758855381543,0.6984,3958.5,3958.4,1.16245]
[1758855381740,0.2244,3958.8,3958.7,0.2231]
[1758855382047,0.5663,3958.8,3958.7,0.8986]
[1758855382443,0.7968,3958.8,3958.7,0.708]
[1758855382642,0.7968,3958.8,3958.7,0.4821]
[1758855383240,0.1321,3959.0,3958.8,0.4544]
[1758855383442,0.1321,3959.0,3958.9,0.6396]
[1758855383443,0.474,3959.0,3958.9,0.6396]
[1758855383746,0.5663,3959.1,3959.0,0.90338]
[1758855383952,0.2244,3958.3,3958.2,1.09407]
[1758855384153,0.5663,3958.3,3958.2,1.16247]
[1758855384346,0.3419,3958.3,3958.2,1.35307]
[1758855385652,0.5663,3958.3,3958.2,0.90347]
[1758855385852,0.1321,3958.5,3958.4,0.45445]
[1758855386151,0.6984,3958.5,3958.4,0.90345]
[1758855386353,0.6984,3958.5,3958.4,1.16245]
[1758855386546,0.6984,3958.5,3958.4,41.96245]
[1758855387051,0.6984,3958.5,3958.4,1.16245]
[1758855387246,0.1321,3959.0,3958.8,0.4544]
[1758855387550,0.7968,3958.9,3958.8,0.9034]
[1758855387743,0.7968,3958.9,3958.8,1.1624]
[1758855389451,0.7968,3958.9,3958.8,0.708]
[1758855389749,0.7968,3958.9,3958.8,0.4821]
[1758855391445,0.3419,3958.9,3958.8,0.8988]
[1758855391650,0.1321,3959.0,3958.9,0.45439]
[1758855391837,0.1321,3959.0,3958.9,1.08109]
[1758855392043,0.4769,3959.0,3958.9,1.08109]
[1758855392240,0.6867,3959.0,3958.9,0.89029]
[1758855393655,0.9112,3959.0,3958.9,0.6949]
[1758855394853,0.9112,3959.0,3958.9,0.4359]
[1758855395053,0.9112,3959.0,3958.9,0.4718]
[1758855395257,0.5664,3959.0,3958.9,0.259]
[1758855396556,0.4769,3959.0,3958.9,1.34009]
[1758855397151,0.3448,3959.0,3958.9,1.34009]
[1758855397858,0.0252,3959.1,3959.0,0.6267]
[1758855398562,0.37,3959.1,3959.0,0.6267]
[1758855398757,0.5798,3959.1,3959.0,0.4359]
[1758855398951,0.8043,3959.1,3959.0,0.4359]
[1758855399152,0.9148,3959.0,3958.9,0.45439]
[1758855399453,1.45484439,3959.0,3958.9,0.92619]
[1758855400458,1.45484439,3959.0,3958.9,0.71339]
[1758855401363,1.45484439,3959.0,3958.9,0.45439]
[1758855401554,1.45484439,3959.0,3958.9,0.71339]
[1758855401861,1.45484439,3959.0,3958.9,0.92619]
[1758855402563,0.9148,3958.5,3958.4,0.45445]
[1758855402859,1.45484439,3958.5,3958.4,0.71345]
[1758855404462,1.45484439,3958.5,3958.4,0.92625]
[1758855404659,1.45484439,3958.5,3958.4,0.71345]
[1758855405881,1.45484439,3958.5,3958.3,0.45446]
[1758855406054,1.31914439,3958.4,3958.3,0.45446]
[1758855406253,1.31914439,3958.4,3958.3,0.71346]
[1758855406462,1.31914439,3958.4,3958.3,1.14936]
[1758855408866,0.88484439,3958.4,3958.3,2.66683494]
[1758855409060,0.5546,3958.7,3958.6,0.89033]
[1758855409359,0.1357,3958.5,3958.3,1.78112494]
[1758855409553,1.31974364,3958.4,3958.3,0.66725]
[1758855409752,1.31974364,3958.4,3958.3,0.92625]
[1758855409955,1.31974364,3958.4,3958.3,0.45445]
[1758855410158,1.31974364,3958.4,3958.3,0.71345]
[1758855412065,1.31974364,3958.4,3958.3,0.45445]
[1758855412265,1.31974364,3958.4,3958.3,0.71345]
[1758855412464,0.3448,3958.3,3958.1,0.45448]
[1758855412660,0.9148,3958.0,3957.9,0.47976624]
[1758855412860,1.45544364,3958.0,3957.9,0.73876624]
[1758855413370,1.45544364,3958.0,3957.9,0.28426624]
[1758855414361,1.45544364,3958.0,3957.9,0.02526624]
[1758855414571,1.45544364,3958.0,3957.9,0.28426624]
[1758855414765,1.45544364,3958.0,3957.9,0.72016624]
[1758855414965,1.23094364,3958.0,3957.9,2.04684118]
[1758855415965,1.23094364,3958.0,3957.9,0.28426624]
[1758855415966,1.45544364,3958.0,3957.9,0.28426624]
[1758855416263,1.45544364,3958.0,3957.9,0.02526624]
[1758855416264,2.78211858,3958.0,3957.9,0.02526624]
[1758855416466,2.78211858,3958.0,3957.9,0.28426624]
[1758855417665,1.45544364,3958.0,3957.9,0.28426624]
[1758855418964,1.45544364,3958.0,3957.9,0.49706624]
[1758855419369,1.45544364,3958.0,3957.9,0.72016624]
[1758855419872,1.23094364,3958.0,3957.9,0.91096624]
[1758855420473,0.6903,3958.0,3957.9,0.91096624]
[1758855420670,0.9148,3958.0,3957.9,0.46116624]
[1758855420882,0.9148,3958.0,3957.9,0.49706624]
[1758855421371,1.45453406,3958.0,3957.9,0.28426624]
[1758855421772,0.9148,3958.0,3957.9,0.28426624]
[1758855422373,0.9148,3958.0,3957.9,0.72636624]
[1758855422673,0.6903,3958.0,3957.9,2.24394118]
[1758855422869,0.6184,3958.5,3958.4,0.89655]
[1758855423066,1.15812185,3958.5,3958.4,1.34645]
[1758855423270,1.15812185,3958.5,3958.4,1.15555]
[1758855423473,1.47972185,3958.5,3958.4,1.15555]
[1758855423866,1.47970924,3958.5,3958.4,1.15555]
[1758855424169,1.25010924,3958.5,3958.4,1.15555]
[1758855424475,1.25010924,3958.5,3958.4,1.14815]
[1758855424476,0.9307,3958.5,3958.4,1.14815]
[1758855425260,0.9307,3958.5,3958.4,0.88915]
[1758855425469,0.9307,3958.5,3957.9,0.21596624]
[1758855425470,0.9055,3958.0,3957.9,0.45916624]
[1758855425778,2.77199418,3958.0,3957.9,0.28426624]
[1758855427277,2.77199418,3958.0,3957.9,0.02526624]
[1758855427481,2.77199418,3958.0,3957.9,0.28426624]
[1758855427972,8.22649418,3958.0,3957.9,0.02526624]
[1758855428173,8.22649418,3958.0,3956.6,40.92237494]
[1758855428174,0.2179,3956.7,3956.6,0.4339]
[1758855428384,0.7692,3956.7,3956.6,0.6929]
[1758855428565,0.7692,3956.7,3956.6,0.4339]
[1758855428769,0.7692,3956.7,3956.6,41.68856]
[1758855428980,0.7692,3956.7,3956.6,41.94756]
[1758855429174,0.7692,3956.7,3956.6,41.25466]
[1758855429378,2.09587494,3956.7,3956.6,41.25466]
[1758855429576,0.3225,3956.7,3956.6,41.25466]
[1758855429776,0.3225,3956.7,3956.6,41.51366]
[1758855430274,0.3225,3956.7,3956.6,41.25466]
[1758855430475,0.7692,3956.7,3956.6,0.71366]
[1758855430775,0.7692,3956.7,3956.6,0.88856]
[1758855430975,0.7692,3956.7,3956.6,1.14756]
[1758855431881,0.7692,3956.7,3956.6,0.71366]
[1758855432181,0.4467,3956.4,3956.2,40.8]
[1758855432378,0.3225,3956.3,3956.2,40.8]
[1758855432968,0.3225,3956.3,3956.2,41.51369]
[1758855433677,0.3225,3956.3,3956.2,41.059]
[1758855433873,0.3225,3956.3,3956.2,40.8]
[1758855434069,0.3225,3956.3,3955.9,0.45473]
[1758855434070,0.7692,3955.7,3955.6,0.67827]
[1758855434268,0.7692,3955.7,3955.6,0.93727]
[1758855434472,0.7692,3955.7,3955.6,41.73727]
[1758855434672,0.7692,3955.7,3955.6,41.47827]
[1758855434877,0.7692,3955.7,3955.6,41.2825]
[1758855435179,0.7692,3955.7,3955.6,40.8]
[1758855435374,0.7692,3955.7,3955.6,41.059]
[1758855435575,0.7692,3955.7,3955.6,40.8]
[1758855435773,0.7692,3955.7,3955.6,41.059]
[1758855435975,0.7692,3955.7,3955.6,0.259]
[1758855436282,0.2179,3955.1,3955.0,1.10474]
[1758855436479,0.5404,3955.1,3955.0,42.16374]
[1758855436679,0.5404,3955.1,3955.0,41.90474]
[1758855436979,0.5404,3955.1,3955.0,42.16374]
[1758855437575,0.5404,3955.1,3955.0,41.90474]
[1758855437776,0.5404,3955.1,3955.0,41.94774]
[1758855438078,0.9055,3955.5,3955.4,0.88869]
[1758855438283,0.9055,3955.5,3955.4,1.14769]
[1758855438778,0.9055,3955.5,3955.4,0.93729]
[1758855438980,0.9055,3955.5,3955.4,0.71379]
[1758855439378,0.583,3955.5,3955.2,0.45481]
[1758855439581,0.7692,3955.3,3955.2,0.67831]
[1758855439778,0.7692,3955.3,3955.2,0.88871]
[1758855439982,0.7692,3955.3,3955.2,1.14771]
[1758855440283,0.3225,3955.3,3955.2,1.14771]
[1758855440583,0.1363,3956.0,3955.9,0.45474]
[1758855440777,0.2179,3956.4,3956.3,0.45469]
[1758855440978,0.5404,3956.4,3956.3,1.14759]
[1758855441579,0.4467,3956.4,3956.3,0.259]
[1758855441781,0.4467,3956.4,3956.2,0.45469]
[1758855441979,0.4467,3956.4,3956.3,0.4825]
[1758855442281,0.7692,3956.4,3956.3,0.6929]
[1758855442880,0.7692,3956.4,3956.2,0.45469]
[1758855443081,0.7692,3956.4,3956.3,0.4825]
[1758855444879,0.4588,3956.0,3955.3,0.216]
[1758855445080,0.7692,3955.4,3955.3,0.4339]
[1758855445284,0.5404,3955.4,3955.3,0.6929]
[1758855445483,0.5404,3955.4,3955.3,41.7089]
[1758855445786,0.5404,3955.4,3955.3,41.4499]
[1758855445984,0.5404,3955.4,3955.3,42.16371]
[1758855446180,0.5404,3955.4,3955.3,41.68871]
[1758855446383,0.583,3956.0,3955.9,0.67824]
[1758855446678,0.583,3956.0,3955.9,1.14764]
[1758855446884,0.583,3956.0,3955.9,0.259]
[1758855447084,0.7692,3955.9,3955.8,0.45474]
[1758855447280,0.7692,3955.9,3955.8,1.14764]
[1758855447474,0.5404,3955.9,3955.8,1.14764]
[1758855448082,0.7692,3955.9,3955.8,1.14764]
[1758855449984,0.5404,3955.9,3955.8,1.36364]
[1758855450180,0.7573,3955.9,3955.8,1.14764]
[1758855450383,0.7573,3955.9,3955.8,1.15404]
[1758855450589,0.5404,3955.9,3955.8,1.37064]
[1758855450895,0.7573,3955.9,3955.8,1.15404]
[1758855451390,0.7573,3955.9,3955.8,0.89504]
[1758855451688,0.8818,3955.5,3955.4,0.2252]
[1758855451876,0.8818,3955.5,3955.4,0.701]
[1758855452483,0.8818,3955.5,3955.4,1.15579]
[1758855454395,0.3142,3955.5,3955.4,1.37239]
[1758855456894,0.1363,3956.0,3955.9,0.67994]
[1758855456895,0.8838,3956.0,3955.9,0.67994]
[1758855457198,1.11110708,3956.0,3955.1,1.95504493]
[1758855457391,0.5306,3955.3,3955.2,1.15582]
[1758855457695,0.3142,3955.3,3955.2,1.11342]
[1758855457988,0.5306,3955.3,3955.2,1.15582]
[1758855458395,0.5306,3955.3,3955.2,1.37242]
[1758855458589,0.1343,3955.5,3955.4,0.45479]
[1758855458788,0.1343,3955.5,3955.4,1.11339]
[1758855459189,0.6649,3955.5,3955.4,1.11339]
[1758855459487,2.09134493,3956.0,3955.9,0.67994]
[1758855459488,0.5696,3956.0,3955.9,0.67994]
[1758855459690,1.11193256,3956.0,3955.9,1.15574]
[1758855459892,1.11193256,3956.0,3955.9,0.93894]
[1758855460091,1.42613256,3956.0,3955.9,0.93894]
[1758855463298,1.42613256,3956.0,3955.9,1.15574]
[1758855466599,1.42613256,3956.0,3955.9,0.45474]
[1758855466787,1.42613256,3956.0,3955.9,0.71374]
[1758855469096,0.3142,3955.9,3955.2,0.2166]
[1758855469302,0.7475,3955.4,3955.3,0.71381]
[1758855469505,1.28983256,3955.4,3955.3,0.93901]
[1758855469897,1.28983256,3955.4,3955.3,1.15581]
[1758855470901,1.28983256,3955.4,3955.3,0.89681]
[1758855471097,1.28983256,3955.4,3955.3,1.15581]
[1758855471602,1.28983256,3955.4,3955.3,0.89681]
[1758855471797,1.28983256,3955.4,3955.3,1.15581]
[1758855473003,1.28983256,3955.4,3955.3,0.89681]
[1758855473203,1.28983256,3955.4,3955.3,0.45481]
[1758855473504,1.07293256,3955.4,3955.3,1.37241]
[1758855473702,0.54233256,3955.4,3955.3,3.32745493]
[1758855473999,0.5306,3955.7,3955.6,1.11337]
[1758855474197,1.0743588,3955.7,3955.6,1.37237]
[1758855476003,1.0743588,3955.7,3955.6,1.15577]
[1758855476204,1.2912588,3955.7,3955.6,1.15577]
[1758855478610,1.0743588,3955.7,3955.6,1.37237]
[1758855478801,0.8579588,3955.7,3955.6,1.37237]
[1758855479306,1.0743588,3955.7,3955.6,1.37237]
[1758855481208,1.0743588,3955.7,3955.6,1.11337]
[1758855481401,1.0743588,3955.7,3955.6,1.15577]
[1758855482608,0.352,3956.1,3956.0,0.45473]
[1758855482800,0.5723,3956.1,3956.0,1.35953]
[1758855483001,1.11617246,3956.1,3956.0,1.14323]
[1758855483905,1.33337246,3956.1,3956.0,0.88423]
[1758855484107,1.33337246,3956.1,3956.0,0.2142]
[1758855484306,0.312,3955.9,3955.7,0.45475]
[1758855484513,1.29617246,3955.8,3955.7,0.45475]
[1758855484904,1.29617246,3955.8,3955.7,0.71375]
[1758855485712,1.08547246,3955.8,3955.7,1.10355]
[1758855485911,1.08547246,3955.8,3955.7,1.14605]
[1758855486114,0.5416,3955.8,3955.7,1.36255]
[1758855486313,0.312,3955.8,3955.7,1.36255]
[1758855487113,0.7523,3955.8,3955.7,1.14605]
[1758855487514,1.29590119,3955.8,3955.7,1.14605]
[1758855487709,1.29590119,3955.8,3955.7,0.88705]
[1758855487710,0.7523,3955.8,3955.7,0.88705]
[1758855487916,1.29589902,3955.8,3955.7,0.93475]
[1758855488213,1.29589902,3955.8,3955.7,1.14605]
[1758855488415,1.29589902,3955.8,3955.7,0.88705]
[1758855488614,1.29589902,3955.8,3955.7,0.71375]
[1758855488815,1.29589902,3955.8,3955.7,0.45475]
[1758855489115,1.29589902,3955.8,3955.7,0.71375]
[1758855489514,1.29589902,3955.8,3955.7,0.67575]
[1758855489715,1.29589902,3955.8,3955.7,0.93475]
[1758855490916,1.29589902,3955.8,3955.7,0.71375]
[1758855491211,1.29589902,3955.8,3955.7,0.45475]